fUSD/lending_fUSD_20240318
["ID","MTS","AMOUNT","RATE_DAILY","PERIOD"]
[319432855,1710736302004,-4937.08,0.0003178,4]
[319432856,1710736302018,-500.0,0.0003178,4]
[319432857,1710736302032,-14656.9,0.0003178,4]
[319432858,1710736302046,-500.0,0.0003178,4]
[319432859,1710736302059,-500.0,0.0003178,4]
[319432860,1710736302073,-1119.07,0.0003178,4]
[319432861,1710736302087,-500.0,0.0003178,4]
[319432862,1710736302101,-714.97,0.0003178,4]
[319432863,1710736302115,-500.0,0.0003178,4]
[319432864,1710736302128,-500.0,0.0003178,4]
[319432865,1710736302142,-3778.15,0.0003178,4]
[319432866,1710736302156,-500.0,0.0003178,4]
[319432867,1710736302170,-500.0,0.0003178,4]
[319432868,1710736302183,-2442.22,0.0003178,4]
[319432869,1710736302198,-915.55,0.0003178,4]
[319432870,1710736302211,-500.0,0.0003178,4]
[319432871,1710736302224,-502.68331334,0.0003178,4]
[319432872,1710736302237,-2039.35,0.0003178,4]
[319432873,1710736302250,-500.0,0.0003178,4]
[319432874,1710736302264,-500.0,0.0003178,2]
[319432875,1710736302278,-1590.31,0.0003178,4]
[319432876,1710736302291,-500.0,0.0003178,4]
[319432877,1710736302303,-765.76,0.0003178,4]
[319432878,1710736302466,-2078.76,0.0003178,4]
[319432879,1710736302482,-2024.35,0.0003178,4]
[319432880,1710736302492,-500.0,0.0003178,4]
[319432881,1710736302502,-3546.12,0.0003178,4]
[319432882,1710736302511,-500.0,0.0003178,4]
[319432883,1710736302520,-500.0,0.0003178,4]
[319432884,1710736302529,-150.0,0.00031781,2]
[319432885,1710736302538,-152.0,0.00031786,7]
[319432886,1710736302547,-151.031811,0.00031798,4]
[319432887,1710736302556,-151.031811,0.00031798,5]
[319432888,1710736302566,-387.889,0.000318,7]
[319432889,1710736302574,-150.1,0.000318,2]
[319432890,1710736302584,-152.38,0.000318,2]
[319432891,1710736302593,-152.38,0.000318,2]
[319432892,1710736302602,-152.38,0.000318,2]
[319432893,1710736302611,-152.38,0.000318,2]
[319432894,1710736302620,-152.38,0.000318,2]
[319432895,1710736302630,-152.38,0.000318,2]
[319432896,1710736302639,-152.38,0.000318,2]
[319432897,1710736302649,-152.38,0.000318,2]
[319432898,1710736302658,-152.38,0.000318,2]
[319432899,1710736302668,-8365.87,0.000318,2]
[319432900,1710736302678,-8365.87,0.000318,2]
[319432901,1710736302687,-8365.87,0.000318,2]
[319432902,1710736302698,-8365.87,0.000318,2]
[319432903,1710736302711,-8365.87,0.000318,2]
[319432904,1710736302721,-8365.87,0.000318,2]
[319432905,1710736302730,-8365.87,0.000318,2]
[319432906,1710736302742,-8365.87,0.000318,2]
[319432907,1710736302752,-8365.87,0.000318,2]
[319432908,1710736302761,-8365.87,0.000318,2]
[319432909,1710736302771,-8365.87,0.000318,2]
[319432910,1710736302781,-8365.87,0.000318,2]
[319432911,1710736302791,-8365.87,0.000318,2]
[319432912,1710736302801,-8365.87,0.000318,2]
[319432913,1710736302811,-8365.87,0.000318,2]
[319432914,1710736302821,-8365.87,0.000318,2]
[319432915,1710736302831,-8365.87,0.000318,2]
[319432916,1710736302841,-8365.87,0.000318,2]
[319432917,1710736302850,-8365.87,0.000318,2]
[319432918,1710736302860,-8365.87,0.000318,2]
[319432919,1710736302870,-300.0,0.000318,2]
[319432920,1710736302879,-5300.0,0.0003188,24]
[319432921,1710736302890,-10000.11293667,0.00031888,7]
[319432922,1710736302945,-5050.0,0.000319,10]
[319432923,1710736302954,-4800.0,0.000319,10]
[319432924,1710736302963,-2796.4740126,0.00031902,2]
[319432925,1710736302972,-2936.25209512,0.00031902,2]
[319432926,1710736302982,-317.76,0.00031905,2]
[319432927,1710736302991,-2858.01720315,0.00031906,2]
[319432928,1710736303001,-4314.0,0.00031907,2]
[319432929,1710736303011,-2852.80997286,0.00031908,2]
[319432930,1710736303020,-1661.12032506,0.00031909,2]
[319432931,1710736303029,-9588.42591787,0.0003191,2]
[319432932,1710736303038,-150.09840628,0.0003191,2]
[319432933,1710736303047,-2390.63662788,0.00031912,2]
[319432934,1710736303056,-2865.74972242,0.00031913,2]
[319432935,1710736303065,-2854.09461655,0.00031914,2]
[319432936,1710736303075,-2880.25567978,0.00031915,2]
[319432937,1710736303084,-2874.38416867,0.00031918,2]
[319432938,1710736303093,-2857.97402038,0.00031919,2]
[319432939,1710736303102,-460.16907291,0.00031919,2]
[319432940,1710736303111,-2878.39448796,0.00031921,2]
[319432941,1710736303120,-2879.34735895,0.00031922,2]
[319432942,1710736303129,-9726.73927225,0.00031923,2]
[319432943,1710736303138,-1637.2636725,0.00031923,2]
[319432944,1710736303147,-9563.12547977,0.00031928,2]
[319432945,1710736303156,-2702.78541784,0.00031929,2]
[319432946,1710736303165,-2860.76461345,0.0003193,2]
[319432947,1710736303174,-2958.22702547,0.00031931,2]
[319432948,1710736303183,-2775.78426889,0.00031932,2]
[319432949,1710736303192,-9583.10506181,0.00031933,2]
[319432950,1710736303202,-2858.90073602,0.00031934,2]
[319432951,1710736303211,-2860.5915638,0.00031939,2]
[319432952,1710736303220,-2049.27713234,0.0003194,2]
[319432953,1710736303230,-480.55009354,0.00031942,2]
[319432954,1710736303239,-9557.92403262,0.00031942,2]
[319432955,1710736303248,-461.58360067,0.00031944,2]
[319432956,1710736303258,-9567.77394081,0.00031949,2]
[319432957,1710736303267,-2812.30298409,0.00031951,2]
[319432958,1710736303276,-2025.87449187,0.00031951,2]
[319432959,1710736303285,-2874.83020146,0.00031951,2]
[319432960,1710736303294,-2868.24701982,0.00031953,2]
[319432961,1710736303303,-2874.07868337,0.00031954,2]
[319432962,1710736303312,-2889.28079519,0.00031956,2]
[319432963,1710736303321,-459.40009378,0.00031957,2]
[319432964,1710736303330,-2867.99068704,0.00031958,2]
[319432965,1710736303339,-2888.32734558,0.00031962,2]
[319432966,1710736303349,-2090.57231938,0.00031966,2]
[319432967,1710736303358,-2306.73829775,0.00031969,2]
[319432968,1710736303367,-2717.7766997,0.0003197,2]
[319432969,1710736303376,-400.0,0.0003197,2]
[319432970,1710736303385,-400.0,0.0003197,2]
[319432971,1710736303394,-400.0,0.0003197,2]
[319432972,1710736303404,-2729.24683104,0.00031971,2]
[319432973,1710736303414,-2265.24441427,0.00031975,2]
[319432974,1710736303423,-2851.17651063,0.00031978,2]
[319432975,1710736303432,-9606.80276238,0.00031978,2]
[319432976,1710736303441,-2048.6508782,0.00031978,2]
[319432977,1710736303450,-9630.91718996,0.00031979,2]
[319432978,1710736303460,-2859.84074274,0.0003198,2]
[319432979,1710736303470,-2852.8064111,0.0003198,2]
[319432980,1710736303480,-2789.95686011,0.00031981,2]
[319432981,1710736303490,-465.8443148,0.00031983,2]
[319432982,1710736303502,-461.36748067,0.00031983,2]
[319432983,1710736303514,-2960.70703175,0.00031986,2]
[319432984,1710736303524,-2877.0041498,0.00031989,2]
[319432985,1710736303534,-9636.26004057,0.00031991,2]
[319432986,1710736303544,-2453.92653776,0.00031996,2]
[319432987,1710736303554,-1978.69591122,0.00032,2]
[319432988,1710736303564,-2464.29703216,0.00032,6]
[319432989,1710736303573,-600.0,0.00032,33]
[319432990,1710736303583,-2100.0,0.00032,2]
[319432991,1710736303592,-2899.0,0.00032,30]
[319432992,1710736303602,-1000.0,0.00032,14]
[319432993,1710736303611,-1670.5927804,0.00032,14]
[319432994,1710736303621,-150.0,0.00032,5]
[319432995,1710736303630,-500.0,0.00032,120]
[319432996,1710736303639,-29539.62546806,0.00032,14]
[319432997,1710736303648,-20000.0,0.00032,20]
[319432998,1710736303658,-15067.0,0.00032,20]
[319432999,1710736303667,-378.10947585,0.00032,8]
[319433000,1710736303676,-150.0,0.00032,5]
[319433001,1710736303685,-500.0,0.00032054,4]
[319433002,1710736303694,-500.0,0.00032054,4]
[319433003,1710736303702,-500.0,0.00032054,4]
[319433004,1710736303711,-505.89160547,0.00032054,4]
[319433005,1710736303720,-500.0,0.00032054,4]
[319433006,1710736303729,-500.0,0.00032054,4]
[319433007,1710736303738,-507.45531848,0.00032054,4]
[319433008,1710736303753,-500.0,0.00032054,4]
[319433009,1710736303762,-500.0,0.00032054,4]
[319433010,1710736303771,-500.0,0.00032054,4]
[319433011,1710736303781,-500.0,0.00032054,4]
[319433012,1710736303791,-500.0,0.00032054,4]
[319433013,1710736303800,-500.0,0.00032054,4]
[319433014,1710736303809,-500.0,0.00032054,4]
[319433015,1710736303818,-532.16845906,0.00032054,4]
[319433016,1710736303830,-500.0,0.00032054,4]
[319433017,1710736303840,-500.0,0.00032054,4]
[319433018,1710736303849,-500.0,0.00032054,4]
[319433019,1710736303858,-504.7753625,0.00032054,4]
[319433020,1710736303866,-500.0,0.00032054,4]
[319433021,1710736303876,-500.0,0.00032054,4]
[319433022,1710736303885,-500.0,0.00032054,4]
[319433023,1710736303894,-500.0,0.00032054,4]
[319433024,1710736303904,-500.0,0.00032054,4]
[319433025,1710736303913,-309.61078379,0.00032054,4]
[319433026,1710736303923,-500.0,0.00032054,4]
[319433027,1710736303932,-892.35,0.00032054,4]
[319433028,1710736303942,-631.95644531,0.00032054,4]
[319433029,1710736303952,-588.99,0.00032054,4]
[319433030,1710736303961,-500.0,0.00032054,4]
[319433031,1710736303971,-500.0,0.00032054,4]
[319433032,1710736303980,-500.0,0.00032054,4]
[319433033,1710736303989,-530.60223826,0.00032054,4]
[319433034,1710736303998,-500.0,0.00032054,4]
[319433035,1710736304010,-500.0,0.00032054,4]
[319433036,1710736304019,-500.0,0.00032054,4]
[319433037,1710736304028,-500.0,0.00032054,4]
[319433038,1710736304037,-500.0,0.00032054,4]
[319433039,1710736304047,-752.67,0.00032054,4]
[319433040,1710736304056,-500.0,0.00032054,4]
[319433041,1710736304066,-500.0,0.00032054,4]
[319433042,1710736304075,-500.0,0.00032054,4]
[319433043,1710736304085,-500.0,0.00032054,4]
[319433044,1710736304094,-500.0,0.00032054,4]
[319433045,1710736304103,-500.0,0.00032054,4]
[319433046,1710736304112,-500.0,0.00032054,4]
[319433047,1710736304122,-500.0,0.00032054,4]
[319433048,1710736304131,-500.0,0.00032054,4]
[319433049,1710736304140,-189.98987298,0.00032054,4]
[319433050,1710736304149,-500.0,0.00032054,4]
[319433051,1710736304158,-500.0,0.00032054,4]
[319433052,1710736304167,-869.9,0.00032054,4]
[319433053,1710736304175,-500.0,0.00032054,4]
[319433054,1710736304184,-1373.45,0.00032054,4]
[319433055,1710736304193,-536.23,0.00032054,4]
[319433056,1710736304202,-500.0,0.00032054,4]
[319433057,1710736304211,-500.0,0.00032054,4]
[319433058,1710736304220,-1105.28,0.00032054,4]
[319433059,1710736304229,-500.0,0.00032054,4]
[319433060,1710736304238,-500.0,0.00032054,4]
[319433061,1710736304249,-500.0,0.00032054,4]
[319433062,1710736304259,-500.0,0.00032054,4]
[319433063,1710736304267,-500.0,0.00032054,4]
[319433064,1710736304287,-500.0,0.00032054,4]
[319433065,1710736304296,-500.0,0.00032054,4]
[319433066,1710736304305,-622.18,0.00032054,4]
[319433067,1710736304314,-500.0,0.00032054,4]
[319433068,1710736304323,-500.0,0.00032054,4]
[319433069,1710736304332,-444.35289755,0.00032054,4]
[319433070,1710736304341,-500.0,0.00032054,4]
[319433071,1710736304349,-500.0,0.00032054,4]
[319433072,1710736304358,-500.0,0.00032054,4]
[319433073,1710736304367,-500.0,0.00032054,4]
[319433074,1710736304376,-500.0,0.00032054,4]
[319433075,1710736304385,-500.0,0.00032054,4]
[319433076,1710736304394,-501.4,0.00032054,4]
[319433077,1710736304403,-612.98028266,0.00032054,4]
[319433078,1710736304413,-2231.25,0.00032054,4]
[319433079,1710736304422,-500.0,0.00032054,4]
[319433080,1710736304431,-407.4304253,0.00032054,4]
[319433081,1710736304440,-500.0,0.00032054,4]
[319433082,1710736304449,-500.0,0.00032054,4]
[319433083,1710736304458,-500.0,0.00032054,4]
[319433084,1710736304467,-735.9,0.00032054,4]
[319433085,1710736304475,-500.0,0.00032054,4]
[319433086,1710736304484,-500.0,0.00032054,4]
[319433087,1710736304493,-500.0,0.00032054,4]
[319433088,1710736304504,-500.0,0.00032054,4]
[319433089,1710736304513,-500.0,0.00032054,4]
[319433090,1710736304521,-631.14578789,0.00032054,4]
[319433091,1710736304530,-500.0,0.00032054,4]
[319433092,1710736304539,-943.04,0.00032054,4]
[319433093,1710736304548,-599.50289537,0.00032054,4]
[319433094,1710736304557,-500.0,0.00032054,4]
[319433095,1710736304565,-500.0,0.00032054,4]
[319433096,1710736304574,-500.0,0.00032054,4]
[319433097,1710736304583,-500.0,0.00032054,4]
[319433098,1710736304592,-500.0,0.00032054,4]
[319433099,1710736304601,-500.0,0.00032054,4]
[319433100,1710736304610,-503.91,0.00032054,4]
[319433101,1710736304619,-500.0,0.00032054,4]
[319433102,1710736304628,-500.0,0.00032054,4]
[319433103,1710736304637,-1566.14,0.00032054,4]
[319433104,1710736304646,-500.0,0.00032054,4]
[319433105,1710736304655,-500.0,0.00032054,4]
[319433106,1710736304664,-216.39571886,0.00032054,4]
[319433107,1710736304673,-500.0,0.00032054,4]
[319433108,1710736304682,-500.0,0.00032054,4]
[319433109,1710736304692,-500.0,0.00032054,4]
[319433110,1710736304701,-500.0,0.00032054,4]
[319433111,1710736304710,-507.78,0.00032054,4]
[319433112,1710736304719,-500.0,0.00032054,4]
[319433113,1710736304729,-500.0,0.00032054,4]
[319433114,1710736304739,-500.0,0.00032054,4]
[319433115,1710736304754,-500.0,0.00032054,4]
[319433116,1710736304763,-500.0,0.00032054,4]
[319433117,1710736304772,-500.0,0.00032054,4]
[319433118,1710736304782,-500.0,0.00032054,4]
[319433119,1710736304791,-832.17,0.00032054,4]
[319433120,1710736304800,-500.0,0.00032054,4]
[319433121,1710736304809,-500.0,0.00032054,4]
[319433122,1710736304819,-500.0,0.00032054,4]
[319433123,1710736304832,-500.0,0.00032054,4]
[319433124,1710736304842,-500.0,0.00032054,4]
[319433125,1710736304852,-1123.76,0.00032054,4]
[319433126,1710736304861,-600.34,0.00032054,4]
[319433127,1710736304871,-710.22,0.00032054,4]
[319433128,1710736304880,-500.0,0.00032054,4]
[319433129,1710736304890,-506.39997805,0.00032054,4]
[319433130,1710736304900,-563.73283011,0.00032054,4]
[319433131,1710736304909,-500.0,0.00032054,4]
[319433132,1710736304919,-1438.95,0.00032054,4]
[319433133,1710736304928,-1027.19,0.00032054,4]
[319433134,1710736304938,-500.0,0.00032054,4]
[319433135,1710736304947,-500.0,0.00032054,4]
[319433136,1710736304957,-624.55,0.00032054,4]
[319433137,1710736304966,-500.0,0.00032054,4]
[319433138,1710736304975,-500.0,0.00032054,4]
[319433139,1710736304985,-500.0,0.00032054,4]
[319433140,1710736304994,-595.77,0.00032054,4]
[319433141,1710736305005,-1826.25,0.00032054,4]
[319433142,1710736305015,-500.0,0.00032054,4]
[319433143,1710736305025,-407.6411704,0.00032054,4]
[319433144,1710736305035,-931.82,0.00032054,4]
[319433145,1710736305044,-500.0,0.00032054,4]
[319433146,1710736305054,-2156.89,0.00032054,4]
[319433147,1710736305063,-626.3,0.00032054,4]
[319433148,1710736305072,-500.0,0.00032054,4]
[319433149,1710736305082,-500.0,0.00032054,4]
[319433150,1710736305091,-500.0,0.00032054,4]
[319433151,1710736305100,-500.0,0.00032054,4]
[319433152,1710736305109,-2005.2,0.00032054,4]
[319433153,1710736305118,-379.50958902,0.00032054,4]
[319433154,1710736305127,-500.0,0.00032054,4]
[319433155,1710736305136,-375.0320888,0.00032054,4]
[319433156,1710736305145,-500.0,0.00032054,4]
[319433157,1710736305154,-500.0,0.00032054,4]
[319433158,1710736305164,-2463.3,0.00032054,4]
[319433159,1710736305173,-500.0,0.00032054,4]
[319433160,1710736305182,-500.0,0.00032054,4]
[319433161,1710736305191,-500.0,0.00032054,4]
[319433162,1710736305201,-500.0,0.00032054,4]
[319433163,1710736305211,-2094.29,0.00032054,4]
[319433164,1710736305221,-911.56,0.00032054,4]
[319433165,1710736305230,-500.0,0.00032054,4]
[319433166,1710736305240,-2639.58,0.00032054,4]
[319433167,1710736305249,-500.0,0.00032054,4]
[319433168,1710736305260,-500.0,0.00032054,4]
[319433169,1710736305269,-500.0,0.00032054,4]
[319433170,1710736305278,-500.0,0.00032054,4]
[319433171,1710736305287,-523.09,0.00032054,4]
[319433172,1710736305296,-3465.75,0.00032054,4]
[319433173,1710736305305,-500.0,0.00032054,4]
[319433174,1710736305314,-500.0,0.00032054,4]
[319433175,1710736305324,-3439.16,0.00032054,4]
[319433176,1710736305332,-1239.79,0.00032054,4]
[319433177,1710736305341,-500.0,0.00032054,4]
[319433178,1710736305351,-865.02,0.00032054,4]
[319433179,1710736305360,-770.0,0.00032054,4]
[319433180,1710736305369,-500.0,0.00032054,4]
[319433181,1710736305378,-1050.75,0.00032054,4]
[319433182,1710736305388,-500.0,0.00032054,4]
[319433183,1710736305397,-639.93,0.00032054,4]
[319433184,1710736305407,-3922.62,0.00032054,4]
[319433185,1710736305417,-500.0,0.00032054,4]
[319433186,1710736305427,-500.0,0.00032054,4]
[319433187,1710736305437,-500.0,0.00032054,4]
[319433188,1710736305446,-953.43,0.00032054,4]
[319433189,1710736305456,-611.87,0.00032054,4]
[319433190,1710736305465,-500.0,0.00032054,4]
[319433191,1710736305475,-798.65,0.00032054,4]
[319433192,1710736305484,-2710.57,0.00032054,4]
[319433193,1710736305493,-500.0,0.00032054,4]
[319433194,1710736305503,-2948.74,0.00032054,4]
[319433195,1710736305512,-500.0,0.00032054,4]
[319433196,1710736305522,-539.71,0.00032054,4]
[319433197,1710736305531,-500.0,0.00032054,4]
[319433198,1710736305540,-500.0,0.00032054,4]
[319433199,1710736305550,-500.0,0.00032054,4]
[319433200,1710736305559,-500.0,0.00032054,4]
[319433201,1710736305568,-500.0,0.00032054,4]
[319433202,1710736305577,-500.0,0.00032054,4]
[319433203,1710736305586,-500.0,0.00032054,4]
[319433204,1710736305595,-1200.43,0.00032054,4]
[319433205,1710736305604,-500.0,0.00032054,4]
[319433206,1710736305778,-500.0,0.00032054,4]
[319433207,1710736305787,-500.0,0.00032054,4]
[319433208,1710736305797,-500.0,0.00032054,4]
[319433209,1710736305806,-500.0,0.00032054,4]
[319433210,1710736305815,-501.63244369,0.00032054,4]
[319433211,1710736305827,-593.8,0.00032054,4]
[319433212,1710736305836,-646.93,0.00032054,4]
[319433213,1710736305845,-3040.38,0.00032054,4]
[319433214,1710736305854,-912.86,0.00032054,4]
[319433215,1710736305863,-521.56,0.00032054,4]
[319433216,1710736305873,-500.0,0.00032054,4]
[319433217,1710736305882,-500.0,0.00032054,4]
[319433218,1710736305891,-500.0,0.00032054,4]
[319433219,1710736305901,-2075.71,0.00032054,4]
[319433220,1710736305910,-1026.81,0.00032054,4]
[319433221,1710736305920,-500.0,0.00032054,4]
[319433222,1710736305930,-788.56,0.00032054,4]
[319433223,1710736305939,-500.0,0.00032054,4]
[319433224,1710736305949,-615.18,0.00032054,4]
[319433225,1710736305958,-500.0,0.00032054,4]
[319433226,1710736305967,-422.257105,0.00032054,7]
[319433227,1710736305976,-1506.09,0.00032054,4]
[319433228,1710736305985,-325.77262096,0.00032054,4]
[319433229,1710736305994,-500.0,0.00032054,4]
[319433230,1710736306004,-422.257105,0.00032054,7]
[319433231,1710736306013,-500.0,0.00032054,4]
[319433232,1710736306023,-500.0,0.00032054,4]
[319433233,1710736306032,-500.0,0.00032054,4]
[319433234,1710736306041,-1442.43,0.00032054,4]
[319433235,1710736306051,-500.0,0.00032054,4]
[319433236,1710736306060,-488.338229,0.00032054,7]
[319433237,1710736306069,-4584.29,0.00032054,4]
[319433238,1710736306079,-151.0,0.00032054,7]
[319433239,1710736306089,-1419.83,0.00032054,4]
[319433240,1710736306098,-488.338229,0.00032054,7]
[319433241,1710736306107,-1416.16,0.00032054,4]
[319433242,1710736306117,-500.0,0.00032054,4]
[319433243,1710736306127,-1501.08,0.00032054,4]
[319433244,1710736306136,-500.0,0.00032054,4]
[319433245,1710736306145,-500.0,0.00032054,4]
[319433246,1710736306155,-1326.91,0.00032054,4]
[319433247,1710736306164,-151.0,0.00032054,7]
[319433248,1710736306173,-500.0,0.00032054,4]
[319433249,1710736306182,-388.16022122,0.00032054,4]
[319433250,1710736306191,-500.0,0.00032054,4]
[319433251,1710736306200,-1157.88,0.00032054,4]
[319433252,1710736306210,-500.0,0.00032054,4]
[319433253,1710736306219,-522.83,0.00032054,4]
[319433254,1710736306229,-151.0,0.00032054,5]
[319433255,1710736306239,-1901.89,0.00032054,4]
[319433256,1710736306248,-884.27,0.00032054,4]
[319433257,1710736306260,-718.57,0.00032054,4]
[319433258,1710736306269,-460.45023076,0.00032054,4]
[319433259,1710736306279,-500.0,0.00032054,4]
[319433260,1710736306288,-500.0,0.00032054,4]
[319433261,1710736306297,-500.0,0.00032054,4]
[319433262,1710736306307,-151.0,0.00032054,7]
[319433263,1710736306317,-626.44,0.00032054,4]
[319433264,1710736306327,-1481.56,0.00032054,4]
[319433265,1710736306336,-820.19,0.00032054,4]
[319433266,1710736306346,-616.04,0.00032054,4]
[319433267,1710736306356,-661.6,0.00032054,4]
[319433268,1710736306365,-807.78,0.00032054,4]
[319433269,1710736306375,-576.56,0.00032054,4]
[319433270,1710736306384,-500.0,0.00032054,4]
[319433271,1710736306394,-500.0,0.00032054,4]
[319433272,1710736306405,-1258.08,0.00032054,4]
[319433273,1710736306416,-500.0,0.00032054,4]
[319433274,1710736306425,-922.75,0.00032054,4]
[319433275,1710736306434,-471.67594381,0.00032054,4]
[319433276,1710736306444,-500.0,0.00032054,4]
[319433277,1710736306454,-500.0,0.00032054,4]
[319433278,1710736306463,-1859.01,0.00032054,4]
[319433279,1710736306473,-998.14,0.00032054,4]
[319433280,1710736306483,-500.0,0.00032054,4]
[319433281,1710736306493,-712.78,0.00032054,4]
[319433282,1710736306502,-3134.02,0.00032054,4]
[319433283,1710736306512,-720.74,0.00032054,4]
[319433284,1710736306521,-500.0,0.00032054,4]
[319433285,1710736306531,-835.55,0.00032054,4]
[319433286,1710736306540,-794.41,0.00032054,4]
[319433287,1710736306549,-3743.94,0.00032054,4]
[319433288,1710736306558,-500.0,0.00032054,4]
[319433289,1710736306568,-642.05,0.00032054,4]
[319433290,1710736306578,-1113.65,0.00032054,4]
[319433291,1710736306587,-589.6,0.00032054,4]
[319433292,1710736306599,-500.0,0.00032054,4]
[319433293,1710736306609,-500.0,0.00032054,4]
[319433294,1710736306618,-633.04,0.00032054,4]
[319433295,1710736306628,-512.73,0.00032054,4]
[319433296,1710736306637,-774.64,0.00032054,4]
[319433297,1710736306647,-1524.04,0.00032054,4]
[319433298,1710736306657,-1586.83,0.00032054,4]
[319433299,1710736306666,-1898.65,0.00032054,4]
[319433300,1710736306676,-500.0,0.00032054,4]
[319433301,1710736306686,-500.0,0.00032054,4]
[319433302,1710736306696,-500.0,0.00032054,4]
[319433303,1710736306705,-833.34,0.00032054,4]
[319433304,1710736306714,-1329.2,0.00032054,4]
[319433305,1710736306723,-500.0,0.00032054,4]
[319433306,1710736306734,-501.93,0.00032054,4]
[319433307,1710736306744,-505.17471879,0.00032054,4]
[319433308,1710736306756,-574.74,0.00032054,4]
[319433309,1710736306765,-500.0,0.00032054,4]
[319433310,1710736306775,-272.12368076,0.00032054,4]
[319433311,1710736306785,-500.0,0.00032054,4]
[319433312,1710736306795,-899.79,0.00032054,4]
[319433313,1710736306805,-500.0,0.00032054,4]
[319433314,1710736306814,-836.63,0.00032054,4]
[319433315,1710736306827,-663.74,0.00032054,4]
[319433316,1710736306838,-1143.03,0.00032054,4]
[319433317,1710736306847,-500.0,0.00032054,4]
[319433318,1710736306857,-1917.2,0.00032054,4]
[319433319,1710736306866,-1716.33,0.00032054,4]
[319433320,1710736306875,-1304.54,0.00032054,4]
[319433321,1710736306885,-500.0,0.00032054,4]
[319433322,1710736306894,-705.47,0.00032054,4]
[319433323,1710736306903,-500.0,0.00032054,4]
[319433324,1710736306912,-794.56,0.00032054,4]
[319433325,1710736306922,-500.0,0.00032054,4]
[319433326,1710736306931,-758.7,0.00032054,4]
[319433327,1710736306940,-588.98,0.00032054,4]
[319433328,1710736306950,-560.65,0.00032054,4]
[319433329,1710736306959,-2333.6,0.00032054,4]
[319433330,1710736306969,-1061.17,0.00032054,4]
[319433331,1710736306979,-500.0,0.00032054,4]
[319433332,1710736306989,-500.0,0.00032054,4]
[319433333,1710736306998,-1095.12,0.00032054,4]
[319433334,1710736307009,-500.0,0.00032054,4]
[319433335,1710736307019,-2145.95,0.00032054,4]
[319433336,1710736307029,-1627.27,0.00032054,4]
[319433337,1710736307038,-500.0,0.00032054,4]
[319433338,1710736307048,-500.0,0.00032054,4]
[319433339,1710736307057,-500.0,0.00032054,4]
[319433340,1710736307066,-151.0,0.00032054,7]
[319433341,1710736307075,-2012.26,0.00032054,4]
[319433342,1710736307084,-1352.76,0.00032054,4]
[319433343,1710736307093,-500.0,0.00032054,2]
[319433344,1710736307102,-537.95,0.00032054,4]
[319433345,1710736307111,-500.0,0.00032054,4]
[319433346,1710736307121,-2747.25,0.00032054,4]
[319433347,1710736307131,-606.33,0.00032054,4]
[319433348,1710736307140,-500.0,0.00032054,4]
[319433349,1710736307149,-500.0,0.00032054,4]
[319433350,1710736307158,-500.0,0.00032054,4]
[319433351,1710736307167,-500.0,0.00032054,4]
[319433352,1710736307176,-278.76161387,0.00032054,4]
[319433353,1710736307185,-154.830592,0.00032054,7]
[319433354,1710736307195,-154.830592,0.00032054,7]